fUST/lending_fUST_20250927
["ID","MTS","AMOUNT","RATE_DAILY","PERIOD"]
[387856273,1758930690717,-480.0,0.00046849,120]
[387856274,1758930690726,-480.0,0.00046849,120]
[387856275,1758930690736,-485.62854516,0.00046849,120]
[387856276,1758930690745,-490.47,0.00046849,120]
[387856277,1758930690757,-480.0,0.00046849,120]
[387856278,1758930690767,-480.0,0.00046849,120]
[387856279,1758930690777,-480.0,0.00046849,120]
[387856280,1758930690786,-480.0,0.00046849,120]
[387856281,1758930690796,-480.0,0.00046849,120]
[387856282,1758930690805,-480.0,0.00046849,120]
[387856283,1758930690815,-480.0,0.00046849,120]
[387856284,1758930690824,-480.0,0.00046849,120]
[387856285,1758930690834,-480.0,0.00046849,120]
[387856286,1758930690843,-480.0,0.00046849,120]
[387856287,1758930690852,-480.0,0.00046849,100]
[387856288,1758930690861,-480.0,0.00046849,120]
[387856289,1758930690870,-209.84302138,0.00046849,120]
[387856290,1758930690879,-480.0,0.00046849,120]
[387856291,1758930690889,-480.0,0.00046849,120]
[387856292,1758930690898,-480.0,0.00046849,120]
[387856293,1758930690907,-471.16579292,0.00046849,120]
[387856294,1758930690916,-480.0,0.00046849,120]
[387856295,1758930690925,-480.0,0.00046849,120]
[387856296,1758930690935,-1480.61,0.00046849,120]
[387856297,1758930690944,-481.28575198,0.00046849,120]
[387856298,1758930690954,-493.94349029,0.00046849,120]
[387856299,1758930690964,-549.86,0.00046849,120]
[387856300,1758930690973,-480.0,0.00046849,120]
[387856301,1758930690983,-480.0,0.00046849,120]
[387856302,1758930690992,-480.0,0.00046849,120]
[387856303,1758930691001,-480.0,0.00046849,120]
[387856304,1758930691011,-480.0,0.00046849,120]
[387856305,1758930691021,-500.0,0.00046849,14]
[387856306,1758930691030,-480.0,0.00046849,120]
[387856307,1758930691039,-480.0,0.00046849,120]
[387856308,1758930691049,-399.08072086,0.00046849,120]
[387856309,1758930691058,-480.0,0.00046849,120]
[387856310,1758930691068,-480.0,0.00046849,120]
[387856311,1758930691077,-480.0,0.00046849,120]
[387856312,1758930691087,-519.62,0.00046849,120]
[387856313,1758930691097,-480.0,0.00046849,120]
[387856314,1758930691278,-1520.5,0.00046849,120]
[387856315,1758930691289,-609.63,0.00046849,120]
[387856316,1758930691298,-480.0,0.00046849,120]
[387856317,1758930691307,-506.82437098,0.00046849,120]
[387856318,1758930691317,-482.44407335,0.00046849,120]
[387856319,1758930691326,-480.0,0.00046849,120]
[387856320,1758930691335,-480.0,0.00046849,120]
[387856321,1758930691345,-488.05890247,0.00046849,120]
[387856322,1758930691354,-480.0,0.00046849,120]
[387856323,1758930691364,-480.0,0.00046849,120]
[387856324,1758930691374,-371.46651571,0.00046849,120]
[387856325,1758930691383,-480.0,0.00046849,120]
[387856326,1758930691392,-480.0,0.00046849,120]
[387856327,1758930691401,-480.0,0.00046849,120]
[387856328,1758930691411,-480.0,0.00046849,120]
[387856329,1758930691421,-831.39,0.00046849,120]
[387856330,1758930691431,-494.94147538,0.00046849,120]
[387856331,1758930691441,-761.44,0.00046849,120]
[387856332,1758930691450,-480.0,0.00046849,120]
[387856333,1758930691459,-480.0,0.00046849,120]
[387856334,1758930691469,-480.0,0.00046849,120]
[387856335,1758930691479,-480.0,0.00046849,120]
[387856336,1758930691488,-480.0,0.00046849,120]
[387856337,1758930691497,-480.0,0.00046849,120]
[387856338,1758930691507,-480.0,0.00046849,120]
[387856339,1758930691516,-480.0,0.00046849,120]
[387856340,1758930691527,-480.0,0.00046849,120]
[387856341,1758930691537,-178.26979842,0.00046849,3]
[387856342,1758930691546,-480.0,0.00046849,120]
[387856343,1758930691556,-151.5721518,0.00046849,120]
[387856344,1758930691565,-480.0,0.00046849,120]
[387856345,1758930691575,-480.0,0.00046849,120]
[387856346,1758930691584,-480.0,0.00046849,120]
[387856347,1758930691593,-480.0,0.00046849,120]
[387856348,1758930691604,-480.0,0.00046849,120]
[387856349,1758930691616,-480.0,0.00046849,120]
[387856350,1758930691625,-480.0,0.00046849,120]
[387856351,1758930691635,-1122.86,0.00046849,120]
[387856352,1758930691646,-578.52,0.00046849,120]
[387856353,1758930691656,-480.0,0.00046849,120]
[387856354,1758930691667,-512.15,0.00046849,120]
[387856355,1758930691680,-482.6364415,0.00046849,120]
[387856356,1758930691690,-480.0,0.00046849,120]
[387856357,1758930691699,-541.18,0.00046849,120]
[387856358,1758930691708,-737.02,0.00046849,120]
[387856359,1758930691718,-706.32,0.00046849,120]
[387856360,1758930691727,-480.0,0.00046849,120]
[387856361,1758930691737,-480.0,0.00046849,30]
[387856362,1758930691749,-484.82987027,0.00046849,120]
[387856363,1758930691760,-480.0,0.00046849,120]
[387856364,1758930691770,-480.0,0.00046849,120]
[387856365,1758930691779,-683.22,0.00046849,120]
[387856366,1758930691789,-480.0,0.00046849,120]
[387856367,1758930691798,-480.0,0.00046849,120]
[387856368,1758930691807,-1082.49,0.00046849,120]
[387856369,1758930691816,-480.0,0.00046849,120]
[387856370,1758930691826,-480.0,0.00046849,120]
[387856371,1758930691836,-480.0,0.00046849,120]
[387856372,1758930691845,-480.0,0.00046849,120]
[387856373,1758930691854,-480.0,0.00046849,120]
[387856374,1758930691864,-480.0,0.00046849,120]
[387856375,1758930691874,-480.0,0.00046849,120]
[387856376,1758930691883,-480.0,0.00046849,120]
[387856377,1758930691893,-480.0,0.00046849,120]
[387856378,1758930691902,-480.0,0.00046849,120]
[387856379,1758930691912,-480.0,0.00046849,120]
[387856380,1758930691922,-480.0,0.00046849,120]
[387856381,1758930691932,-480.0,0.00046849,120]
[387856382,1758930691942,-480.0,0.00046849,120]
[387856383,1758930691951,-480.0,0.00046849,120]
[387856384,1758930691961,-480.0,0.00046849,120]
[387856385,1758930691970,-480.0,0.00046849,120]
[387856386,1758930691979,-480.0,0.00046849,120]
[387856387,1758930691989,-480.0,0.00046849,120]
[387856388,1758930691998,-480.0,0.00046849,120]
[387856389,1758930692007,-699.76,0.00046849,120]
[387856390,1758930692017,-480.0,0.00046849,120]
[387856391,1758930692026,-480.0,0.00046849,120]
[387856392,1758930692035,-480.0,0.00046849,120]
[387856393,1758930692045,-342.12915479,0.00046849,120]
[387856394,1758930692055,-480.0,0.00046849,120]
[387856395,1758930692065,-480.0,0.00046849,120]
[387856396,1758930692075,-484.28807979,0.00046849,120]
[387856397,1758930692084,-564.44634415,0.00046849,120]
[387856398,1758930692093,-480.0,0.00046849,120]
[387856399,1758930692103,-480.0,0.00046849,120]
[387856400,1758930692112,-480.0,0.00046849,120]
[387856401,1758930692122,-480.0,0.00046849,120]
[387856402,1758930692131,-252.47170673,0.00046849,120]
[387856403,1758930692141,-480.0,0.00046849,120]
[387856404,1758930692150,-480.0,0.00046849,120]
[387856405,1758930692161,-480.0,0.00046849,120]
[387856406,1758930692170,-1287.22,0.00046849,120]
[387856407,1758930692180,-480.0,0.00046849,120]
[387856408,1758930692189,-1144.78,0.00046849,120]
[387856409,1758930692198,-480.0,0.00046849,120]
[387856410,1758930692207,-480.0,0.00046849,120]
[387856411,1758930692217,-1111.83,0.00046849,120]
[387856412,1758930692227,-480.0,0.00046849,120]
[387856413,1758930692237,-480.0,0.00046849,120]
[387856414,1758930692247,-480.0,0.00046849,120]
[387856415,1758930692256,-480.0,0.00046849,120]
[387856416,1758930692266,-482.93604698,0.00046849,120]
[387856417,1758930692276,-480.0,0.00046849,120]
[387856418,1758930692285,-736.45,0.00046849,120]
[387856419,1758930692295,-480.0,0.00046849,120]
[387856420,1758930692304,-480.0,0.00046849,120]
[387856421,1758930692314,-480.0,0.00046849,120]
[387856422,1758930692323,-480.0,0.00046849,120]
[387856423,1758930692333,-480.0,0.00046849,120]
[387856424,1758930692343,-1736.26,0.00046849,120]
[387856425,1758930692353,-480.0,0.00046849,120]
[387856426,1758930692362,-480.0,0.00046849,120]
[387856427,1758930692371,-996.24,0.00046849,120]
[387856428,1758930692381,-480.0,0.00046849,120]
[387856429,1758930692391,-480.0,0.00046849,120]
[387856430,1758930692400,-480.0,0.00046849,120]
[387856431,1758930692410,-665.94,0.00046849,120]
[387856432,1758930692420,-480.0,0.00046849,120]
[387856433,1758930692429,-480.0,0.00046849,120]
[387856434,1758930692439,-720.74,0.00046849,120]
[387856435,1758930692448,-480.0,0.00046849,120]
[387856436,1758930692457,-1950.02,0.00046849,120]
[387856437,1758930692467,-480.0,0.00046849,120]
[387856438,1758930692476,-480.0,0.00046849,120]
[387856439,1758930692486,-2666.53,0.00046849,120]
[387856440,1758930692495,-1001.23,0.00046849,120]
[387856441,1758930692505,-808.71,0.00046849,120]
[387856442,1758930692515,-480.0,0.00046849,120]
[387856443,1758930692524,-157.59168191,0.00046849,120]
[387856444,1758930692533,-480.0,0.00046849,120]
[387856445,1758930692543,-480.0,0.00046849,120]
[387856446,1758930692552,-480.0,0.00046849,120]
[387856447,1758930692561,-891.41,0.00046849,120]
[387856448,1758930692571,-480.0,0.00046849,120]
[387856449,1758930692580,-480.0,0.00046849,120]
[387856450,1758930692589,-480.0,0.00046849,120]
[387856451,1758930692599,-480.0,0.00046849,120]
[387856452,1758930692607,-480.0,0.00046849,120]
[387856453,1758930692617,-480.0,0.00046849,120]
[387856454,1758930692626,-480.0,0.00046849,120]
[387856455,1758930692635,-480.0,0.00046849,120]
[387856456,1758930692645,-855.83,0.00046849,120]
[387856457,1758930692654,-1161.26,0.00046849,120]
[387856458,1758930692664,-480.0,0.00046849,120]
[387856459,1758930692677,-480.0,0.00046849,120]
[387856460,1758930692687,-480.0,0.00046849,120]
[387856461,1758930692696,-480.0,0.00046849,120]
[387856462,1758930692705,-480.0,0.00046849,120]
[387856463,1758930692715,-652.45,0.00046849,120]
[387856464,1758930692724,-480.0,0.00046849,120]
[387856465,1758930692733,-480.0,0.00046849,120]
[387856466,1758930692746,-480.0,0.00046849,120]
[387856467,1758930692755,-480.0,0.00046849,120]
[387856468,1758930692765,-298.11346355,0.00046849,120]
[387856469,1758930692775,-480.0,0.00046849,120]
[387856470,1758930692784,-480.0,0.00046849,120]
[387856471,1758930692794,-480.0,0.00046849,120]
[387856472,1758930692803,-1530.53,0.00046849,120]
[387856473,1758930692812,-480.0,0.00046849,120]
[387856474,1758930692822,-580.34445657,0.00046849,120]
[387856475,1758930692833,-698.24,0.00046849,120]
[387856476,1758930692843,-487.33,0.00046849,120]
[387856477,1758930692852,-480.0,0.00046849,120]
[387856478,1758930692862,-480.0,0.00046849,120]
[387856479,1758930692871,-480.0,0.00046849,120]
[387856480,1758930692881,-480.0,0.00046849,120]
[387856481,1758930692890,-2777.42,0.00046849,120]
[387856482,1758930692899,-993.47,0.00046849,120]
[387856483,1758930692908,-480.0,0.00046849,120]
[387856484,1758930692918,-480.0,0.00046849,120]
[387856485,1758930692927,-480.0,0.00046849,120]
[387856486,1758930692936,-480.0,0.00046849,120]
[387856487,1758930692946,-1595.64,0.00046849,120]
[387856488,1758930692955,-631.56,0.00046849,120]
[387856489,1758930692964,-1096.6,0.00046849,120]
[387856490,1758930692974,-608.43,0.00046849,120]
[387856491,1758930692984,-480.0,0.00046849,120]
[387856492,1758930692993,-480.0,0.00046849,120]
[387856493,1758930693002,-1419.73,0.00046849,120]
[387856494,1758930693012,-765.39,0.00046849,120]
[387856495,1758930693021,-480.0,0.00046849,120]
[387856496,1758930693031,-623.21,0.00046849,120]
[387856497,1758930693040,-627.77,0.00046849,120]
[387856498,1758930693050,-480.0,0.00046849,120]
[387856499,1758930693060,-480.0,0.00046849,120]
[387856500,1758930693070,-480.0,0.00046849,120]
[387856501,1758930693079,-480.0,0.00046849,120]
[387856502,1758930693089,-565.15,0.00046849,120]
[387856503,1758930693099,-480.0,0.00046849,120]
[387856504,1758930693109,-1372.39,0.00046849,120]
[387856505,1758930693119,-497.96,0.00046849,120]
[387856506,1758930693128,-675.41,0.00046849,120]
[387856507,1758930693137,-480.0,0.00046849,120]
[387856508,1758930693146,-480.0,0.00046849,120]
[387856509,1758930693155,-480.0,0.00046849,120]
[387856510,1758930693164,-480.0,0.00046849,120]
[387856511,1758930693174,-484.01198826,0.00046849,120]
[387856512,1758930693184,-502.83697752,0.00046849,120]
[387856513,1758930693194,-482.80043283,0.00046849,120]
[387856514,1758930693204,-480.0,0.00046849,120]
[387856515,1758930693214,-480.0,0.00046849,120]
[387856516,1758930693224,-725.35,0.00046849,120]
[387856517,1758930693234,-480.0,0.00046849,120]
[387856518,1758930693245,-480.0,0.00046849,120]
[387856519,1758930693254,-480.0,0.00046849,7]
[387856520,1758930693264,-480.0,0.00046849,120]
[387856521,1758930693274,-480.0,0.00046849,120]
[387856522,1758930693284,-803.64,0.00046849,120]
[387856523,1758930693293,-480.0,0.00046849,120]
[387856524,1758930693303,-480.0,0.00046849,120]
[387856525,1758930693314,-480.0,0.00046849,120]
[387856526,1758930693324,-1127.71,0.00046849,120]
[387856527,1758930693334,-1281.76,0.00046849,120]
[387856528,1758930693344,-480.0,0.00046849,120]
[387856529,1758930693353,-480.0,0.00046849,120]
[387856530,1758930693363,-480.0,0.00046849,120]
[387856531,1758930693372,-627.64,0.00046849,120]
[387856532,1758930693382,-480.0,0.00046849,120]
[387856533,1758930693392,-480.0,0.00046849,120]
[387856534,1758930693401,-3303.18,0.00046849,120]
[387856535,1758930693411,-1517.89,0.00046849,120]
[387856536,1758930693420,-480.0,0.00046849,120]
[387856537,1758930693430,-183.67140188,0.00046849,120]
[387856538,1758930693438,-480.0,0.00046849,120]
[387856539,1758930693446,-401.97717306,0.00046849,30]
[387856540,1758930693456,-543.89,0.00046849,120]
[387856541,1758930693466,-480.0,0.00046849,120]
[387856542,1758930693476,-480.0,0.00046849,120]
[387856543,1758930693486,-539.62894321,0.00046849,120]
[387856544,1758930693495,-480.0,0.00046849,120]
[387856545,1758930693505,-1352.86,0.00046849,120]
[387856546,1758930693514,-480.0,0.00046849,120]
[387856547,1758930693524,-480.0,0.00046849,120]
[387856548,1758930693533,-500.0,0.00046849,120]
[387856549,1758930693542,-480.0,0.00046849,120]
[387856550,1758930693551,-480.0,0.00046849,120]
[387856551,1758930693561,-574.04,0.00046849,120]
[387856552,1758930693571,-482.27477997,0.00046849,120]
[387856553,1758930693581,-480.0,0.00046849,120]
[387856554,1758930693652,-480.0,0.00046849,120]
[387856555,1758930693662,-480.0,0.00046849,120]
[387856556,1758930693679,-480.0,0.00046849,120]
[387856557,1758930693688,-480.0,0.00046849,120]
[387856558,1758930693698,-823.76,0.00046849,120]
[387856559,1758930693707,-480.0,0.00046849,120]
[387856560,1758930693718,-480.0,0.00046849,120]
[387856561,1758930693727,-4361.36,0.00046849,120]
[387856562,1758930693737,-480.0,0.00046849,120]
[387856563,1758930693748,-480.0,0.00046849,120]
[387856564,1758930693758,-480.0,0.00046849,120]
[387856565,1758930693767,-480.0,0.00046849,120]
[387856566,1758930693777,-485.91902602,0.00046849,120]
[387856567,1758930693786,-2337.28,0.00046849,120]
[387856568,1758930693796,-404.09472772,0.00046849,120]
[387856569,1758930693806,-618.58,0.00046849,120]
[387856570,1758930693815,-1619.76,0.00046849,120]
[387856571,1758930693825,-1719.52,0.00046849,120]
[387856572,1758930693835,-608.40295013,0.00046849,120]
[387856573,1758930693844,-480.0,0.00046849,120]
[387856574,1758930693853,-749.36,0.00046849,120]
[387856575,1758930693863,-480.0,0.00046849,120]
[387856576,1758930693873,-480.0,0.00046849,120]
[387856577,1758930693883,-493.75829914,0.00046849,120]
[387856578,1758930693892,-480.0,0.00046849,120]
[387856579,1758930693900,-480.0,0.00046849,120]
[387856580,1758930693910,-831.55,0.00046849,120]
[387856581,1758930693920,-1816.63,0.00046849,120]
[387856582,1758930693931,-480.0,0.00046849,120]
[387856583,1758930693941,-480.0,0.00046849,120]
[387856584,1758930693950,-480.0,0.00046849,120]
[387856585,1758930693960,-480.0,0.00046849,120]
[387856586,1758930693969,-1056.72,0.00046849,120]
[387856587,1758930693979,-480.0,0.00046849,120]
[387856588,1758930693988,-480.0,0.00046849,120]
[387856589,1758930693997,-480.0,0.00046849,120]
[387856590,1758930694007,-1861.19,0.00046849,120]
[387856591,1758930694016,-480.0,0.00046849,120]
[387856592,1758930694026,-319.01614932,0.00046849,120]
[387856593,1758930694035,-480.0,0.00046849,120]
[387856594,1758930694044,-480.0,0.00046849,120]
[387856595,1758930694053,-642.64,0.00046849,120]
[387856596,1758930694062,-480.0,0.00046849,120]
[387856597,1758930694072,-3009.0,0.00046849,120]
[387856598,1758930694081,-480.0,0.00046849,120]
[387856599,1758930694091,-480.0,0.00046849,120]
[387856600,1758930694100,-480.0,0.00046849,120]
[387856601,1758930694109,-480.0,0.00046849,120]
[387856602,1758930694118,-500.0,0.00046849,120]
[387856603,1758930694128,-480.0,0.00046849,120]
[387856604,1758930694137,-2268.32,0.00046849,120]
[387856605,1758930694147,-839.4,0.00046849,120]
[387856606,1758930694156,-480.0,0.00046849,120]
[387856607,1758930694165,-480.0,0.00046849,120]
[387856608,1758930694175,-486.04,0.00046849,120]
[387856609,1758930694185,-751.19,0.00046849,120]
[387856610,1758930694194,-480.0,0.00046849,120]
[387856611,1758930694204,-925.57,0.00046849,120]
[387856612,1758930694214,-480.0,0.00046849,120]
[387856613,1758930694223,-1783.09,0.00046849,120]
[387856614,1758930694233,-5759.01,0.00046849,120]
[387856615,1758930694242,-480.0,0.00046849,120]
[387856616,1758930694251,-480.0,0.00046849,120]
[387856617,1758930694260,-480.0,0.00046849,120]
[387856618,1758930694269,-480.0,0.00046849,120]
[387856619,1758930694279,-480.0,0.00046849,120]
[387856620,1758930694288,-480.0,0.00046849,120]
[387856621,1758930694298,-530.43,0.00046849,120]
[387856622,1758930694308,-480.0,0.00046849,120]
[387856623,1758930694317,-480.0,0.00046849,120]
[387856624,1758930694327,-480.0,0.00046849,120]
[387856625,1758930694337,-610.69,0.00046849,120]
[387856626,1758930694346,-1354.62,0.00046849,120]
[387856627,1758930694356,-480.0,0.00046849,120]
[387856628,1758930694365,-480.0,0.00046849,120]
[387856629,1758930694375,-480.0,0.00046849,120]
[387856630,1758930694386,-480.0,0.00046849,120]
[387856631,1758930694395,-480.0,0.00046849,120]
[387856632,1758930694406,-480.0,0.00046849,120]
[387856633,1758930694416,-1055.5,0.00046849,120]
[387856634,1758930694426,-480.0,0.00046849,120]
[387856635,1758930694436,-5949.84,0.00046849,3]
[387856636,1758930694446,-13857.49,0.00046849,120]
[387856637,1758930694456,-480.0,0.00046849,120]
[387856638,1758930694466,-480.0,0.00046849,120]
[387856639,1758930694475,-480.0,0.00046849,120]
[387856640,1758930694484,-688.13,0.00046849,120]
[387856641,1758930694494,-480.0,0.00046849,120]
[387856642,1758930694503,-520.46,0.00046849,120]
[387856643,1758930694513,-485.15618572,0.00046849,120]
[387856644,1758930694522,-582.06,0.00046849,120]
[387856645,1758930694532,-480.0,0.00046849,120]
[387856646,1758930694541,-2713.39,0.00046849,120]
[387856647,1758930694551,-480.0,0.00046849,120]
[387856648,1758930694561,-1323.12,0.00046849,120]
[387856649,1758930694571,-4137.77,0.00046849,120]
[387856650,1758930694581,-480.0,0.00046849,120]
[387856651,1758930694591,-491.57,0.00046849,120]
[387856652,1758930694600,-1013.67,0.00046849,120]
[387856653,1758930694609,-480.0,0.00046849,120]
[387856654,1758930694619,-480.0,0.00046849,120]
[387856655,1758930694630,-481.2502324,0.00046849,120]
[387856656,1758930694639,-5978.0,0.00046849,120]
[387856657,1758930694649,-1604.73,0.00046849,120]
[387856658,1758930694659,-480.0,0.00046849,120]
[387856659,1758930694673,-480.0,0.00046849,120]
[387856660,1758930694682,-1322.87,0.00046849,120]
[387856661,1758930694692,-480.0,0.00046849,120]
[387856662,1758930694703,-480.0,0.00046849,120]
[387856663,1758930694715,-856.38,0.00046849,120]
[387856664,1758930694725,-905.9,0.00046849,120]
[387856665,1758930694735,-480.0,0.00046849,120]
[387856666,1758930694747,-480.0,0.00046849,120]
[387856667,1758930694757,-1798.95,0.00046849,120]
[387856668,1758930694767,-480.0,0.00046849,120]
[387856669,1758930694777,-480.0,0.00046849,120]
[387856670,1758930694791,-480.0,0.00046849,120]
[387856671,1758930694801,-480.0,0.00046849,120]
[387856672,1758930694810,-529.3,0.00046849,120]
[387856673,1758930694820,-480.0,0.00046849,120]
[387856674,1758930694830,-480.0,0.00046849,120]
[387856675,1758930694840,-512.77,0.00046849,120]
[387856676,1758930694850,-711.52,0.00046849,120]
[387856677,1758930694859,-762.04,0.00046849,120]
[387856678,1758930694869,-1000.0,0.00046849,120]
[387856679,1758930694879,-1024.21,0.00046849,120]
[387856680,1758930694888,-512.51639498,0.00046849,120]
[387856681,1758930694898,-480.0,0.00046849,120]
[387856682,1758930694908,-480.0,0.00046849,120]
[387856683,1758930694918,-480.0,0.00046849,120]
[387856684,1758930694928,-480.0,0.00046849,120]
[387856685,1758930694938,-742.5,0.00046849,120]
[387856686,1758930694949,-24445.84,0.00046849,120]
[387856687,1758930694959,-1023.2,0.00046849,120]
[387856688,1758930694969,-480.0,0.00046849,120]
[387856689,1758930694979,-480.0,0.00046849,120]
[387856690,1758930694989,-882.42,0.00046849,120]
[387856691,1758930694999,-480.0,0.00046849,120]
[387856692,1758930695009,-480.0,0.00046849,7]
[387856693,1758930695020,-480.0,0.00046849,120]
[387856694,1758930695030,-480.0,0.00046849,120]
[387856695,1758930695041,-480.0,0.00046849,120]
[387856696,1758930695051,-2297.6,0.00046849,120]
[387856697,1758930695061,-2345.73,0.00046849,120]
[387856698,1758930695071,-3576.08,0.00046849,120]
[387856699,1758930695081,-6250.23,0.00046849,120]
[387856700,1758930695091,-480.0,0.00046849,120]
[387856701,1758930695101,-5284.46,0.00046849,120]
[387856702,1758930695111,-480.0,0.00046849,120]
[387856703,1758930695121,-480.0,0.00046849,120]
[387856704,1758930695134,-1794.86,0.00046849,120]
[387856705,1758930695145,-601.27,0.00046849,120]
[387856706,1758930695155,-480.0,0.00046849,120]
[387856707,1758930695166,-480.0,0.00046849,120]
[387856708,1758930695176,-6790.44,0.00046849,120]
[387856709,1758930695187,-480.0,0.00046849,120]
[387856710,1758930695197,-480.0,0.00046849,120]
[387856711,1758930695206,-480.0,0.00046849,120]
[387856712,1758930695217,-480.0,0.00046849,120]
[387856713,1758930695227,-483.70810159,0.00046849,120]
[387856714,1758930695238,-12700.72,0.00046849,120]
[387856715,1758930695248,-4513.91,0.00046849,120]
[387856716,1758930695258,-3127.71,0.00046849,120]
[387856717,1758930695268,-480.0,0.00046849,120]
[387856718,1758930695279,-616.19,0.00046849,120]
[387856719,1758930695289,-1238.7,0.00046849,120]
[387856720,1758930695300,-480.0,0.00046849,120]
[387856721,1758930695310,-485.26,0.00046849,120]
[387856722,1758930695321,-4636.29,0.00046849,120]
[387856723,1758930695331,-480.0,0.00046849,120]
[387856724,1758930695342,-480.0,0.00046849,120]
[387856725,1758930695353,-1841.32,0.00046849,120]
[387856726,1758930695364,-1724.29,0.00046849,120]
[387856727,1758930695375,-480.0,0.00046849,120]
[387856728,1758930695386,-1256.07,0.00046849,120]
[387856729,1758930695397,-480.0,0.00046849,120]
[387856730,1758930695409,-480.0,0.00046849,120]
[387856731,1758930695425,-1111.04,0.00046849,120]
[387856732,1758930695440,-2425.11,0.00046849,120]
[387856733,1758930695453,-716.75,0.00046849,120]
[387856734,1758930695466,-480.0,0.00046849,120]
[387856735,1758930695481,-480.0,0.00046849,120]
[387856736,1758930695496,-480.0,0.00046849,120]
[387856737,1758930695511,-480.0,0.00046849,120]
[387856738,1758930695527,-480.0,0.00046849,120]
[387856739,1758930695542,-480.0,0.00046849,120]
[387856740,1758930695555,-581.5,0.00046849,120]
[387856741,1758930695570,-480.0,0.00046849,120]
[387856742,1758930695584,-6606.03,0.00046849,120]
[387856743,1758930695595,-1442.05,0.00046849,120]
[387856744,1758930695608,-480.0,0.00046849,120]
[387856745,1758930695620,-547.46,0.00046849,120]
[387856746,1758930695635,-571.19,0.00046849,120]
[387856747,1758930695648,-795.57,0.00046849,120]
[387856748,1758930695663,-480.0,0.00046849,120]
[387856749,1758930695682,-705.84,0.00046849,120]
[387856750,1758930695693,-480.0,0.00046849,120]
[387856751,1758930695704,-480.0,0.00046849,120]
[387856752,1758930695717,-483.47023651,0.00046849,120]
[387856753,1758930695732,-480.0,0.00046849,120]
[387856754,1758930695748,-480.0,0.00046849,120]
[387856755,1758930695761,-797.55,0.00046849,120]
[387856756,1758930695775,-2495.47,0.00046849,120]
[387856757,1758930695787,-483.53155349,0.00046849,120]
[387856758,1758930695800,-1440.69,0.00046849,120]
[387856759,1758930695812,-480.0,0.00046849,120]
[387856760,1758930695824,-1344.92,0.00046849,120]
[387856761,1758930695840,-671.91,0.00046849,120]
[387856762,1758930695852,-743.3,0.00046849,120]
[387856763,1758930695863,-480.0,0.00046849,120]
[387856764,1758930695876,-1952.62,0.00046849,120]
[387856765,1758930695893,-480.0,0.00046849,120]
[387856766,1758930695907,-480.0,0.00046849,30]
[387856767,1758930695919,-480.0,0.00046849,120]
[387856768,1758930695932,-578.91,0.00046849,120]
[387856769,1758930695944,-480.0,0.00046849,120]
[387856770,1758930695957,-480.0,0.00046849,120]
[387856771,1758930695970,-1312.29,0.00046849,120]
[387856772,1758930695983,-205.9326718,0.00046849,120]